fUSD/lending_fUSD_20250305
["ID","MTS","AMOUNT","RATE_DAILY","PERIOD"]
[355485702,1741200010603,-500.0,0.0001099,2]
[355485703,1741200010628,-1449.88,0.0001099,2]
[355485704,1741200010654,-500.0,0.0001099,2]
[355485705,1741200010681,-1337.23,0.0001099,2]
[355485706,1741200010706,-606.56,0.0001099,2]
[355485707,1741200010732,-3905.97,0.0001099,2]
[355485708,1741200010757,-500.0,0.0001099,2]
[355485709,1741200010784,-532.88,0.0001099,2]
[355485710,1741200010810,-708.07,0.0001099,2]
[355485711,1741200010836,-1562.03,0.0001099,2]
[355485712,1741200010862,-500.0,0.0001099,2]
[355485713,1741200010888,-1288.35,0.0001099,2]
[355485714,1741200010913,-880.65,0.0001099,2]
[355485715,1741200010939,-500.0,0.0001099,2]
[355485716,1741200010964,-500.0,0.0001099,2]
[355485717,1741200010990,-1047.08,0.0001099,2]
[355485718,1741200011015,-751.05,0.0001099,2]
[355485719,1741200011041,-500.0,0.0001099,2]
[355485720,1741200011068,-500.0,0.0001099,2]
[355485721,1741200011096,-6859.69,0.0001099,2]
[355485722,1741200011122,-500.0,0.0001099,2]
[355485723,1741200011151,-996.72,0.0001099,2]
[355485724,1741200011178,-834.73,0.0001099,2]
[355485725,1741200011203,-2208.12,0.0001099,2]
[355485726,1741200011229,-545.38,0.0001099,2]
[355485727,1741200011256,-500.0,0.0001099,2]
[355485728,1741200011513,-500.0,0.0001099,2]
[355485729,1741200011546,-832.37,0.0001099,2]
[355485730,1741200011579,-667.04,0.0001099,2]
[355485731,1741200011617,-591.7,0.0001099,2]
[355485732,1741200011644,-864.31,0.0001099,2]
[355485733,1741200011669,-672.64,0.0001099,2]
[355485734,1741200011700,-500.0,0.0001099,2]
[355485735,1741200011727,-500.0,0.0001099,2]
[355485736,1741200011754,-501.06,0.0001099,2]
[355485737,1741200011778,-800.24,0.0001099,2]
[355485738,1741200011804,-263.27,0.0001099,2]
[355485739,1741200011833,-9011.78,0.0001099,2]
[355485740,1741200011858,-500.0,0.0001099,2]
[355485741,1741200011885,-553.87,0.0001099,2]
[355485742,1741200011909,-916.52,0.0001099,2]
[355485743,1741200011934,-925.98,0.0001099,2]
[355485744,1741200011960,-805.49,0.0001099,2]
[355485745,1741200012008,-957.53,0.0001099,2]
[355485746,1741200012036,-500.0,0.0001099,2]
[355485747,1741200012064,-683.35,0.0001099,2]
[355485748,1741200012092,-500.0,0.0001099,2]
[355485749,1741200012172,-500.0,0.0001099,2]
[355485750,1741200012219,-500.0,0.0001099,2]
[355485751,1741200012261,-1361.81,0.0001099,2]
[355485752,1741200012292,-902.46,0.0001099,2]
[355485753,1741200012317,-500.0,0.0001099,2]
[355485754,1741200012343,-500.0,0.0001099,2]
[355485755,1741200012367,-1130.48,0.0001099,2]
[355485756,1741200012392,-537.82,0.0001099,2]
[355485757,1741200012417,-500.0,0.0001099,2]
[355485758,1741200012442,-851.26,0.0001099,2]
[355485759,1741200012466,-864.21,0.0001099,2]
[355485760,1741200012491,-500.0,0.0001099,2]
[355485761,1741200012517,-1046.61,0.0001099,2]
[355485762,1741200012542,-6386.51,0.0001099,2]
[355485763,1741200012569,-2182.41,0.0001099,2]
[355485764,1741200012595,-1205.3,0.0001099,2]
[355485765,1741200012621,-1065.52,0.0001099,2]
[355485766,1741200012647,-500.0,0.0001099,2]
[355485767,1741200012672,-3955.72,0.0001099,2]
[355485768,1741200012698,-500.0,0.0001099,2]
[355485769,1741200012724,-627.31,0.0001099,2]
[355485770,1741200012749,-3574.31,0.0001099,2]
[355485771,1741200012775,-1179.23,0.0001099,2]
[355485772,1741200012800,-3843.57,0.0001099,2]
[355485773,1741200012825,-831.88,0.0001099,2]
[355485774,1741200012851,-1073.2,0.0001099,2]
[355485775,1741200012876,-929.13,0.0001099,2]
[355485776,1741200012901,-500.0,0.0001099,2]
[355485777,1741200012926,-1221.38,0.0001099,2]
[355485778,1741200012951,-500.0,0.0001099,2]
[355485779,1741200012975,-500.0,0.0001099,2]
[355485780,1741200013002,-1756.06,0.0001099,2]
[355485781,1741200013027,-653.18,0.0001099,2]
[355485782,1741200013053,-500.0,0.0001099,2]
[355485783,1741200013079,-653.11,0.0001099,2]
[355485784,1741200013104,-500.0,0.0001099,2]
[355485785,1741200013129,-1133.1,0.0001099,2]
[355485786,1741200013154,-500.0,0.0001099,2]
[355485787,1741200013182,-654.81,0.00010991,2]
[355485788,1741200013208,-507.01443529,0.00010991,2]
[355485789,1741200013232,-690.66,0.00010991,2]
[355485790,1741200013259,-736.26,0.00010991,2]
[355485791,1741200013284,-940.65,0.00010991,2]
[355485792,1741200013310,-1078.67,0.00010991,2]
[355485793,1741200013337,-355.24475304,0.00010991,2]
[355485794,1741200013363,-1178.29,0.00010991,2]
[355485795,1741200013388,-516.53,0.00010991,2]
[355485796,1741200013413,-589.88,0.00010991,2]
[355485797,1741200013438,-1623.32,0.00010991,2]
[355485798,1741200013463,-657.68,0.00010991,2]
[355485799,1741200013487,-1122.16,0.00010991,2]
[355485800,1741200013511,-500.0,0.00010991,2]
[355485801,1741200013536,-500.0,0.00010991,2]
[355485802,1741200013573,-1074.71,0.00010991,2]
[355485803,1741200013600,-500.0,0.00010991,2]
[355485804,1741200013626,-949.65,0.00010991,2]
[355485805,1741200013651,-589.86,0.00010991,2]
[355485806,1741200013677,-1175.85,0.00010991,2]
[355485807,1741200013702,-706.68,0.00010991,2]
[355485808,1741200013729,-862.12,0.00010991,2]
[355485809,1741200013755,-500.0,0.00010991,2]
[355485810,1741200013785,-531.69,0.00010991,2]
[355485811,1741200013820,-500.0,0.00010991,2]
[355485812,1741200013846,-500.0,0.00010991,2]
[355485813,1741200013870,-707.65,0.00010991,2]
[355485814,1741200013895,-1285.44,0.00010991,2]
[355485815,1741200013920,-984.36,0.00010991,2]
[355485816,1741200013945,-504.71,0.00010991,2]
[355485817,1741200013971,-1779.93,0.00010991,2]
[355485818,1741200013995,-935.51,0.00010991,2]
[355485819,1741200014020,-627.34,0.00010991,2]
[355485820,1741200014045,-654.96,0.00010991,2]
[355485821,1741200014072,-873.13,0.00010991,2]
[355485822,1741200014102,-1816.57,0.00010991,2]
[355485823,1741200014128,-925.04,0.00010991,2]
[355485824,1741200014153,-824.55,0.00010991,2]
[355485825,1741200014187,-532.99,0.00010991,2]
[355485826,1741200014214,-768.44,0.00010991,2]
[355485827,1741200014240,-1110.07,0.00010991,2]
[355485828,1741200014268,-915.61,0.00010991,2]
[355485829,1741200014293,-500.0,0.00010991,2]
[355485830,1741200014319,-527.37,0.00010991,2]
[355485831,1741200014345,-500.0,0.00010991,2]
[355485832,1741200014370,-731.65,0.00010991,2]
[355485833,1741200014395,-722.84,0.00010991,2]
[355485834,1741200014421,-1570.62,0.00010991,2]
[355485835,1741200014447,-500.0,0.00010991,2]
[355485836,1741200014472,-500.0,0.00010991,2]
[355485837,1741200014497,-508.25,0.00010991,2]
[355485838,1741200014524,-500.0,0.00010991,2]
[355485839,1741200014553,-500.0,0.00010991,2]
[355485840,1741200014579,-1357.45,0.00010991,2]
[355485841,1741200014607,-664.24,0.00010991,2]
[355485842,1741200014633,-500.0,0.00010991,2]
[355485843,1741200014658,-892.78,0.00010991,2]
[355485844,1741200014683,-772.69,0.00010991,2]
[355485845,1741200014710,-3510.98,0.00010991,2]
[355485846,1741200014735,-500.0,0.00010991,2]
[355485847,1741200014947,-1339.24,0.00010991,2]
[355485848,1741200014973,-3451.07,0.00010991,2]
[355485849,1741200014999,-987.49,0.00010991,2]
[355485850,1741200015025,-500.0,0.00010991,2]
[355485851,1741200015051,-562.26,0.00010991,2]
[355485852,1741200015079,-1967.19,0.00010991,2]
[355485853,1741200015106,-806.96,0.00010991,2]
[355485854,1741200015135,-1540.92,0.00010991,2]
[355485855,1741200015161,-2220.82,0.00010991,2]
[355485856,1741200015192,-840.21,0.00010991,2]
[355485857,1741200015222,-817.64,0.00010991,2]
[355485858,1741200015252,-1155.69,0.00010991,2]
[355485859,1741200015278,-1264.81,0.00010991,2]
[355485860,1741200015303,-18296.98,0.00010991,2]
[355485861,1741200015328,-500.0,0.00010991,2]
[355485862,1741200015357,-500.0,0.00010991,2]
[355485863,1741200015383,-500.0,0.00010991,2]
[355485864,1741200015408,-1001.52,0.00010991,2]
[355485865,1741200015432,-627.35,0.00010991,2]
[355485866,1741200015458,-1541.72,0.00010991,2]
[355485867,1741200015484,-1455.4,0.00010991,2]
[355485868,1741200015510,-1977.3,0.00010991,2]
[355485869,1741200015535,-632.57,0.00010991,2]
[355485870,1741200015560,-500.0,0.00010991,2]
[355485871,1741200015586,-6482.62,0.00010991,2]
[355485872,1741200015612,-941.93,0.00010991,2]
[355485873,1741200015637,-1538.01,0.00010991,2]
[355485874,1741200015662,-988.71,0.00010991,2]
[355485875,1741200015688,-2363.17,0.00010991,2]
[355485876,1741200015716,-783.12,0.00010991,2]
[355485877,1741200015744,-1756.44,0.00010991,2]
[355485878,1741200015768,-500.0,0.00010991,2]
[355485879,1741200015793,-1254.48,0.00010991,2]
[355485880,1741200015819,-1110.63,0.00010991,2]
[355485881,1741200015845,-500.0,0.00010991,2]
[355485882,1741200015871,-3737.26,0.00010991,2]
[355485883,1741200015898,-1195.07,0.00010991,2]
[355485884,1741200015926,-1419.21,0.00010991,2]
[355485885,1741200015952,-1082.18,0.00010991,2]
[355485886,1741200015978,-530.23,0.00010991,2]
[355485887,1741200016004,-2543.66,0.00010991,2]
[355485888,1741200016032,-1163.92,0.00010991,2]
[355485889,1741200016061,-2249.43,0.00010991,2]
[355485890,1741200016088,-1115.8,0.00010991,2]
[355485891,1741200016115,-500.0,0.00010991,2]
[355485892,1741200016143,-500.0,0.00010991,2]
[355485893,1741200016173,-1656.28,0.00010991,2]
[355485894,1741200016200,-1117.96,0.00010991,2]
[355485895,1741200016226,-1432.22,0.00010991,2]
[355485896,1741200016252,-1158.17,0.00010991,2]
[355485897,1741200016279,-1456.64,0.00010991,2]
[355485898,1741200016304,-635.11,0.00010991,2]
[355485899,1741200016331,-606.56,0.00010991,2]
[355485900,1741200016359,-1386.16,0.00010991,2]
[355485901,1741200016390,-500.0,0.00010991,2]
[355485902,1741200016418,-500.0,0.00010991,2]
[355485903,1741200016444,-1605.64,0.00010991,2]
[355485904,1741200016469,-500.0,0.00010991,2]
[355485905,1741200016495,-3256.84,0.00010991,2]
[355485906,1741200016522,-748.73,0.00010991,2]
[355485907,1741200016548,-3851.4,0.00010991,2]
[355485908,1741200016573,-500.0,0.00010991,2]
[355485909,1741200016599,-1930.40064172,0.00010991,2]
[355485910,1741200020982,1820.59,0.00010171,2]
[355485911,1741200032844,151.0,0.0001022,3]
[355485912,1741200177637,4350.999218,0.00010156,2]
[355485913,1741200177659,2632.080782,0.00010156,2]
[355485914,1741200249109,167.08,0.00010151,2]
[355485915,1741200260415,711.14,0.0001015,2]
[355485916,1741200359968,5000.0,0.00014016,25]
[355485917,1741200372066,307.35,0.00010141,2]
[355485918,1741200455013,151.0,0.0001015,3]
[355485919,1741200457050,200.0,0.00010144,2]
[355485920,1741200564076,1142.25,8.244e-05,2]
[355485921,1741200577839,200.0,0.0001016,2]
[355485923,1741200631558,-166.11,0.00010459,2]
[355485924,1741200631569,-1142.25,0.00010508,2]
[355485925,1741200631579,-179.81,0.00010711,2]
[355485926,1741200631588,-729.046,0.0001089,2]
[355485927,1741200631598,-5000.0,0.00010892,2]
[355485928,1741200631607,-19615.2645795,0.00010892,2]
[355485929,1741200631617,-150.0,0.00010958,2]
[355485930,1741200631626,-189.9,0.00010959,2]
[355485931,1741200631636,-150.0,0.00010959,2]
[355485932,1741200631646,-9471.69958411,0.00010969,2]
[355485933,1741200631656,-204.72628888,0.00010973,2]
[355485934,1741200631665,-199.08858689,0.00010989,2]
[355485935,1741200631675,-368.0258182,0.00010989,2]
[355485936,1741200631685,-627.12,0.00010989,2]
[355485937,1741200631695,-747.95,0.00010989,2]
[355485938,1741200631704,-551.48,0.00010989,2]
[355485939,1741200631714,-1284.04,0.00010989,2]
[355485940,1741200631723,-500.0,0.00010989,2]
[355485941,1741200631733,-1281.51,0.00010989,2]
[355485942,1741200631743,-1496.95,0.00010989,2]
[355485943,1741200631753,-861.95,0.00010989,2]
[355485944,1741200631763,-500.0,0.00010989,2]
[355485945,1741200631773,-772.17,0.00010989,2]
[355485946,1741200631782,-500.0,0.00010989,2]
[355485947,1741200631791,-1446.05084059,0.00010989,2]
[355485948,1741200631804,-49.47915941,0.00010989,2]
[355485949,1741200631813,-2228.8,0.00010989,2]
[355485950,1741200631822,-934.75,0.00010989,2]
[355485951,1741200631832,-738.45,0.00010989,2]
[355485952,1741200631841,-899.43,0.00010989,2]
[355485953,1741200631851,-500.0,0.00010989,2]
[355485954,1741200631860,-500.0,0.00010989,2]
[355485955,1741200631869,-500.0,0.00010989,2]
[355485956,1741200631879,-470.08656234,0.00010989,2]
[355485957,1741200631891,-581.43553704,0.00010989,2]
[355485959,1741200631922,-281.20790062,0.00010989,2]
[355485961,1741200631931,-929.34,0.00010989,2]
[355485963,1741200631941,-815.2,0.00010989,2]
[355485965,1741200631951,-500.0,0.00010989,2]
[355485967,1741200631961,-8779.51,0.00010989,2]
[355485969,1741200631970,-799.95,0.00010989,2]
[355485971,1741200631979,-500.0,0.0001099,2]
[355485972,1741200631989,-500.0,0.0001099,2]
[355485973,1741200631998,-500.0,0.0001099,2]
[355485975,1741200632007,-500.0,0.0001099,2]
[355485977,1741200632017,-500.0,0.0001099,2]
[355485979,1741200632026,-500.0,0.0001099,2]
[355485981,1741200632035,-500.0,0.0001099,2]
[355485983,1741200632044,-500.0,0.0001099,2]
[355485985,1741200632054,-504.07569931,0.0001099,2]
[355485987,1741200632063,-500.0,0.0001099,2]
[355485989,1741200632072,-484.99310007,0.0001099,2]
[355485993,1741200632090,-15.00689993,0.0001099,2]
[355485996,1741200632099,-406.55406007,0.0001099,2]
[355485999,1741200632110,-93.44593993,0.0001099,2]
[355486002,1741200632119,-500.0,0.0001099,2]
[355486005,1741200632128,-500.0,0.0001099,2]
[355486008,1741200632137,-500.0,0.0001099,2]
[355486011,1741200632147,-1209.48,0.0001099,2]
[355486014,1741200632156,-500.0,0.0001099,2]
[355486017,1741200632165,-500.0,0.0001099,2]
[355486020,1741200632175,-500.0,0.0001099,2]
[355486022,1741200632184,-500.0,0.0001099,2]
[355486025,1741200632193,-500.0,0.0001099,2]
[355486027,1741200632202,-500.0,0.0001099,2]
[355486030,1741200632211,-500.0,0.0001099,2]
[355486033,1741200632221,-335.29607584,0.0001099,2]
[355486036,1741200632231,-500.0,0.0001099,2]
[355486039,1741200632240,-615.26,0.0001099,2]
[355486041,1741200632250,-602.05,0.0001099,2]
[355486043,1741200632259,-500.0,0.0001099,2]
[355486045,1741200632269,-507.10578641,0.0001099,2]
[355486047,1741200632278,-130.19970977,0.0001099,2]
[355486051,1741200632312,-379.69029023,0.0001099,2]
[355486053,1741200632321,-287.88946647,0.0001099,2]
[355486055,1741200632332,-212.11053353,0.0001099,2]
[355486057,1741200632341,-93.40781645,0.0001099,2]
[355486140,1741200637525,-933.81,0.00010989,2]
[355486141,1741200637537,-406.59218355,0.0001099,2]
[355486142,1741200637548,-500.0,0.0001099,2]
[355486143,1741200637559,-500.0,0.0001099,2]
[355486144,1741200637571,-500.0,0.0001099,2]
[355486145,1741200637582,-500.0,0.0001099,2]
[355486146,1741200637594,-500.0,0.0001099,2]
[355486147,1741200637606,-500.0,0.0001099,2]
[355486148,1741200637617,-743.78,0.0001099,2]
[355486149,1741200637628,-682.9,0.0001099,2]
[355486150,1741200637639,-500.0,0.0001099,2]
[355486151,1741200637650,-504.82285378,0.0001099,2]
[355486152,1741200637662,-506.50679635,0.0001099,2]
[355486153,1741200637673,-500.0,0.0001099,2]
[355486154,1741200637685,-503.24158497,0.0001099,2]
[355486155,1741200637695,-718.99,0.0001099,2]
[355486156,1741200637707,-500.0,0.0001099,2]
[355486157,1741200637717,-500.0,0.0001099,2]
[355486158,1741200637728,-515.02,0.0001099,2]
[355486159,1741200637740,-539.51,0.0001099,2]
[355486160,1741200637751,-500.0,0.0001099,2]
[355486162,1741200637762,-500.0,0.0001099,2]
[355486163,1741200637773,-501.45009573,0.0001099,2]
[355486164,1741200637784,-500.0,0.0001099,2]
[355486165,1741200637795,-500.0,0.0001099,2]
[355486166,1741200637806,-500.0,0.0001099,2]
[355486167,1741200637817,-500.0,0.0001099,2]
[355486168,1741200637828,-500.0,0.0001099,2]
[355486170,1741200637840,-500.0,0.0001099,2]
[355486174,1741200637851,-500.0,0.0001099,2]
[355486177,1741200637861,-263.55787515,0.0001099,2]
[355486181,1741200637873,-500.0,0.0001099,2]
[355486183,1741200637884,-500.0,0.0001099,2]
[355486185,1741200637894,-605.87,0.0001099,2]
[355486187,1741200637906,-504.78737937,0.0001099,2]
[355486190,1741200637917,-500.0,0.0001099,2]
[355486193,1741200637929,-507.66414164,0.0001099,2]
[355486195,1741200637940,-731.76,0.0001099,2]
[355486197,1741200637951,-538.84530611,0.0001099,2]
[355486199,1741200637962,-500.0,0.0001099,2]
[355486201,1741200637972,-500.0,0.0001099,2]
[355486203,1741200637983,-500.0,0.0001099,2]
[355486205,1741200637993,-307.25882364,0.0001099,2]
[355486208,1741200638005,-500.0,0.0001099,2]
[355486210,1741200638016,-500.0,0.0001099,2]
[355486212,1741200638027,-507.02544782,0.0001099,2]
[355486214,1741200638038,-500.0,0.0001099,2]
[355486216,1741200638048,-500.0,0.0001099,2]
[355486218,1741200638059,-500.0,0.0001099,2]
[355486221,1741200638070,-500.0,0.0001099,2]
[355486223,1741200638081,-500.0,0.0001099,2]
[355486225,1741200638091,-500.99709813,0.0001099,2]
[355486227,1741200638102,-596.95,0.0001099,2]
[355486229,1741200638112,-655.97,0.0001099,2]
[355486231,1741200638123,-506.59376405,0.0001099,2]
[355486234,1741200638134,-546.59,0.0001099,2]
[355486236,1741200638144,-500.0,0.0001099,2]
[355486238,1741200638155,-500.0,0.0001099,2]
[355486240,1741200638166,-500.0,0.0001099,2]
[355486242,1741200638177,-582.54,0.0001099,2]
[355486244,1741200638188,-729.26,0.0001099,2]
[355486246,1741200638199,-896.38,0.0001099,2]
[355486249,1741200638209,-500.0,0.0001099,2]
[355486251,1741200638221,-511.02920042,0.0001099,2]
[355486253,1741200638232,-500.0,0.0001099,7]
[355486255,1741200638243,-510.16321581,0.0001099,2]
[355486257,1741200638254,-500.0,0.0001099,2]
[355486259,1741200638265,-500.0,0.0001099,2]
[355486261,1741200638276,-500.0,0.0001099,2]
[355486264,1741200638287,-545.63,0.0001099,2]
[355486266,1741200638298,-619.33505904,0.0001099,2]
[355486268,1741200638309,-964.47,0.0001099,2]
[355486270,1741200638320,-500.0,0.0001099,2]
[355486272,1741200638331,-500.0,0.0001099,2]
[355486274,1741200638342,-500.0,0.0001099,2]
[355486277,1741200638353,-592.12,0.0001099,2]
[355486279,1741200638364,-813.47,0.0001099,2]
[355486281,1741200638375,-644.97,0.0001099,2]
[355486283,1741200638390,-500.0,0.0001099,2]
[355486285,1741200638400,-500.0,0.0001099,2]
[355486288,1741200638411,-506.35709995,0.0001099,2]
[355486290,1741200638423,-500.0,0.0001099,2]
[355486292,1741200638434,-500.0,0.0001099,2]
[355486294,1741200638444,-500.0,0.0001099,2]
[355486296,1741200638457,-643.58,0.0001099,2]
[355486298,1741200638467,-877.62,0.0001099,2]
[355486300,1741200638478,-737.31,0.0001099,2]
[355486302,1741200638488,-956.92,0.0001099,2]
[355486305,1741200638499,-563.202423,0.0001099,2]
[355486307,1741200638509,-500.0,0.0001099,2]
[355486309,1741200638520,-500.0,0.0001099,2]
[355486311,1741200638530,-599.0473595,0.0001099,2]
[355486313,1741200638541,-500.0,0.0001099,2]
[355486315,1741200638551,-797.78,0.0001099,2]
[355486317,1741200638562,-500.0,0.0001099,2]
[355486319,1741200638573,-260.28652498,0.0001099,2]
[355486321,1741200638584,-678.02,0.0001099,2]
[355486324,1741200638596,-940.93,0.0001099,2]
[355486326,1741200638606,-500.0,0.0001099,2]
[355486328,1741200638617,-500.0,0.0001099,2]
[355486330,1741200638628,-500.0,0.0001099,2]
[355486332,1741200638639,-903.32,0.0001099,2]
[355486334,1741200638649,-755.4,0.0001099,2]
[355486336,1741200638660,-500.0,0.0001099,2]
[355486338,1741200638670,-500.0,0.0001099,2]
[355486340,1741200638680,-500.0,0.0001099,2]
[355486342,1741200638691,-500.0,0.0001099,2]
[355486344,1741200638701,-500.0,0.0001099,2]
[355486347,1741200638713,-500.0,0.0001099,2]
[355486349,1741200638723,-500.0,0.0001099,2]
[355486351,1741200638734,-500.0,0.0001099,2]
[355486353,1741200638745,-500.0,0.0001099,2]
[355486355,1741200638755,-500.0,0.0001099,2]
[355486357,1741200638767,-500.0,0.0001099,2]
[355486360,1741200638778,-500.0,0.0001099,2]
[355486362,1741200638788,-503.35,0.0001099,2]
[355486364,1741200638799,-500.0,0.0001099,2]
[355486366,1741200638810,-175.2019174,0.0001099,2]
[355486368,1741200638820,-636.56,0.0001099,2]
[355486370,1741200638831,-500.0,0.0001099,2]
[355486372,1741200638841,-500.0,0.0001099,2]
[355486374,1741200638851,-883.54,0.0001099,2]
[355486376,1741200638862,-500.0,0.0001099,2]
[355486378,1741200638872,-500.0,0.0001099,2]
[355486380,1741200638882,-855.58,0.0001099,2]
[355486383,1741200638893,-500.0,0.0001099,2]
[355486385,1741200638903,-500.0,0.0001099,2]
[355486387,1741200638913,-508.74500202,0.0001099,2]
[355486389,1741200638924,-500.0,0.0001099,2]
[355486391,1741200638935,-783.57,0.0001099,2]
[355486393,1741200638946,-555.95,0.0001099,2]
[355486395,1741200638956,-500.0,0.0001099,2]
[355486397,1741200638966,-500.0,0.0001099,2]
[355486399,1741200638976,-720.32,0.0001099,2]
[355486401,1741200638987,-624.93,0.0001099,2]
[355486404,1741200638998,-500.0,0.0001099,2]
[355486406,1741200639009,-920.5,0.0001099,2]
[355486408,1741200639019,-500.0,0.0001099,2]
[355486410,1741200639029,-500.0,0.0001099,2]
[355486412,1741200639040,-538.83,0.0001099,2]
[355486414,1741200639050,-1202.21,0.0001099,2]
[355486416,1741200639061,-500.0,0.0001099,2]
[355486418,1741200639072,-500.0,0.0001099,2]
[355486421,1741200639082,-695.33,0.0001099,2]
[355486423,1741200639092,-3804.47,0.0001099,2]
[355486425,1741200639103,-671.72,0.0001099,2]
[355486427,1741200639113,-568.98,0.0001099,2]
[355486429,1741200639123,-500.0,0.0001099,2]
[355486431,1741200639134,-805.2,0.0001099,2]
[355486433,1741200639144,-544.91,0.0001099,2]
[355486435,1741200639155,-2558.51,0.0001099,2]
[355486438,1741200639165,-1212.11,0.0001099,2]
[355486440,1741200639176,-500.0,0.0001099,2]
[355486442,1741200639187,-2294.8,0.0001099,2]
[355486444,1741200639197,-500.0,0.0001099,2]
[355486446,1741200639208,-714.11,0.0001099,2]
[355486448,1741200639218,-704.18,0.0001099,2]
[355486450,1741200639228,-500.0,0.0001099,2]
[355486452,1741200639239,-537.48,0.0001099,2]
[355486454,1741200639249,-835.63,0.0001099,2]
[355486456,1741200639259,-686.92,0.0001099,2]
[355486458,1741200639270,-762.74,0.0001099,2]
[355486461,1741200639280,-500.0,0.0001099,2]
[355486463,1741200639292,-515.31082156,0.0001099,2]
[355486465,1741200639303,-902.69,0.0001099,2]
[355486467,1741200639314,-500.0,0.0001099,2]
[355486469,1741200639324,-500.0,0.0001099,2]
[355486471,1741200639335,-962.22,0.0001099,2]
[355486473,1741200639345,-624.94,0.0001099,2]
[355486476,1741200639356,-500.0,0.0001099,2]
[355486478,1741200639366,-1500.48,0.0001099,2]
[355486480,1741200639377,-947.51,0.0001099,2]
[355486482,1741200639391,-2091.47,0.0001099,2]
[355486485,1741200639402,-500.0,0.0001099,2]
[355486487,1741200639412,-631.47,0.0001099,2]
[355486489,1741200639423,-1021.13,0.0001099,2]
[355486491,1741200639435,-500.0,0.0001099,2]
[355486493,1741200639445,-575.42,0.0001099,2]
[355486495,1741200639455,-3292.57,0.0001099,2]
[355486497,1741200639466,-500.0,0.0001099,2]
[355486500,1741200639476,-3425.38,0.0001099,2]
[355486502,1741200639486,-1064.35,0.0001099,2]
[355486504,1741200639496,-581.29,0.0001099,2]
[355486506,1741200639507,-1360.07,0.0001099,2]
[355486508,1741200639517,-510.68,0.0001099,2]
[355486510,1741200639527,-7133.19,0.0001099,2]
[355486512,1741200639537,-3771.14,0.0001099,2]
[355486514,1741200639548,-1037.09,0.0001099,2]
[355486516,1741200639559,-625.97,0.0001099,2]
[355486519,1741200639569,-500.0,0.0001099,2]
[355486521,1741200639580,-1289.52,0.0001099,2]
[355486523,1741200639590,-2991.93,0.0001099,2]
[355486525,1741200639600,-570.89,0.0001099,2]
[355486527,1741200639611,-768.65,0.0001099,2]
[355486529,1741200639621,-3364.69,0.0001099,2]
[355486531,1741200639632,-500.0,0.0001099,2]
[355486533,1741200639643,-955.19,0.0001099,2]
[355486536,1741200639654,-500.0,0.0001099,2]
[355486538,1741200639664,-826.75,0.0001099,2]
[355486540,1741200639674,-500.0,0.0001099,2]
[355486542,1741200639685,-1109.91,0.0001099,2]
[355486544,1741200639695,-1587.27,0.0001099,2]
[355486546,1741200639706,-500.0,0.0001099,2]